bitfinex/quotes_BTCUSD_20241101
["timestamp","ask_amount","ask_price","bid_price","bid_amount"]
[1730423443591,0.20063481,70231.0,70230.0,0.000823]
[1730423445363,0.18737559,70231.0,70230.0,0.000823]
[1730423445568,0.20063595,70231.0,70230.0,0.000823]
[1730423447080,0.2006365,70231.0,70230.0,0.000823]
[1730423448031,0.0302495,70231.0,70230.0,0.000823]
[1730423448228,0.0302495,70231.0,70230.0,0.094223]
[1730423448445,0.142379,70235.0,70230.0,0.172523]
[1730423448666,0.01697803,70231.0,70230.0,0.172523]
[1730423448871,0.01326352,70231.0,70230.0,0.172523]
[1730423449084,0.03024155,70231.0,70230.0,0.172523]
[1730423449298,0.17262855,70231.0,70230.0,0.172523]
[1730423449822,0.17262855,70231.0,70230.0,0.079123]
[1730423450447,0.03025669,70231.0,70230.0,0.079123]
[1730423451008,0.15936503,70231.0,70230.0,0.079123]
[1730423451236,0.1726437,70231.0,70230.0,0.079123]
[1730423452386,0.15936503,70231.0,70230.0,0.079123]
[1730423452700,0.03026639,70231.0,70230.0,0.079123]
[1730423453071,0.01328836,70231.0,70230.0,0.079123]
[1730423453266,0.03026639,70231.0,70230.0,0.079123]
[1730423454136,0.01697803,70231.0,70230.0,0.079123]
[1730423454531,0.01328776,70231.0,70230.0,0.079123]
[1730423454757,0.03026579,70231.0,70230.0,0.079123]
[1730423455025,0.15567476,70231.0,70230.0,0.079123]
[1730423455221,0.17265279,70231.0,70230.0,0.079123]
[1730423456343,0.19565279,70231.0,70230.0,0.079123]
[1730423457024,0.19565279,70231.0,70230.0,0.000823]
[1730423459312,0.05326579,70231.0,70230.0,0.000823]
[1730423460903,0.20065279,70231.0,70230.0,0.000823]
[1730423461522,0.18736503,70231.0,70230.0,0.000823]
[1730423461733,0.20065588,70231.0,70230.0,0.000823]
[1730423463206,0.18736503,70231.0,70230.0,0.000823]
[1730423466725,0.18236503,70231.0,70230.0,0.169423]
[1730423467190,0.18736503,70231.0,70230.0,0.169423]
[1730423467416,0.18236503,70231.0,70230.0,0.169423]
[1730423467603,0.01697803,70231.0,70230.0,0.311812]
[1730423468008,0.142372,70239.0,70232.0,0.142384]
[1730423468009,0.147372,70239.0,70232.0,0.142384]
[1730423468420,0.01698908,70238.0,70230.0,0.49686873]
[1730423468619,0.142372,70239.0,70230.0,0.49686873]
[1730423468796,0.01698908,70238.0,70232.0,0.142383]
[1730423468996,0.023,70237.0,70232.0,0.142383]
[1730423469427,0.023,70238.0,70232.0,0.142383]
[1730423469630,0.01698908,70236.0,70232.0,0.142383]
[1730423469828,0.142373,70238.0,70232.0,0.142383]
[1730423470102,0.023,70234.0,70232.0,0.142383]
[1730423470487,0.01698908,70233.0,70232.0,0.142383]
[1730423470690,0.023,70237.0,70232.0,0.142383]
[1730423470937,0.01699579,70233.0,70232.0,0.142383]
[1730423471136,0.023,70237.0,70232.0,0.142383]
[1730423471553,0.023,70235.0,70232.0,0.142383]
[1730423471901,0.023,70237.0,70232.0,0.142383]
[1730423472101,0.01699579,70234.0,70232.0,0.142383]
[1730423472309,0.023,70237.0,70232.0,0.142383]
[1730423472554,0.01699579,70233.0,70232.0,0.142383]
[1730423472763,0.023,70237.0,70232.0,0.142383]
[1730423473169,0.023,70235.0,70232.0,0.142383]
[1730423473550,0.023,70237.0,70230.0,0.169423]
[1730423473753,0.142373,70238.0,70233.0,0.142383]
[1730423473754,0.03999579,70234.0,70233.0,0.142383]
[1730423473958,0.284701,70249.0,70233.0,0.142383]
[1730423473959,0.001614,70247.0,70237.0,0.1736]
[1730423474206,0.001614,70247.0,70242.0,0.142364]
[1730423474207,0.143968,70247.0,70242.0,0.142364]
[1730423474427,0.01699579,70244.0,70242.0,0.142364]
[1730423474987,0.01699579,70244.0,70243.0,0.142362]
[1730423475192,0.001614,70247.0,70243.0,0.142362]
[1730423475798,0.023,70244.0,70243.0,0.142362]
[1730423476644,0.001614,70247.0,70243.0,0.31125525]
[1730423476852,0.001614,70247.0,70244.0,0.5375766]
[1730423477073,0.001614,70247.0,70244.0,0.45861525]
[1730423477249,0.001614,70247.0,70244.0,0.5453953]
[1730423477400,0.001614,70247.0,70244.0,0.70281668]
[1730423478053,0.001614,70247.0,70244.0,0.69215068]
[1730423478270,0.001614,70247.0,70244.0,0.65519228]
[1730423478472,0.001614,70247.0,70244.0,0.74039307]
[1730423478617,0.001614,70247.0,70244.0,0.73128959]
[1730423479027,0.001614,70247.0,70244.0,0.65517554]
[1730423479225,0.001614,70247.0,70244.0,0.70278959]
[1730423479388,0.001614,70247.0,70244.0,0.76666281]
[1730423480001,0.001614,70247.0,70244.0,0.70278959]
[1730423480204,0.001614,70247.0,70244.0,0.54538495]
[1730423480430,0.001614,70247.0,70244.0,0.57220781]
[1730423481660,0.001614,70247.0,70244.0,0.61475124]
[1730423482289,0.001614,70247.0,70244.0,0.57220781]
[1730423483728,0.001614,70247.0,70244.0,0.67503081]
[1730423483933,0.001646,70259.0,70258.0,0.44112456]
[1730423484050,0.001646,70259.0,70258.0,0.57957981]
[1730423487224,0.001646,70259.0,70258.0,0.58857646]
[1730423494721,0.001646,70259.0,70258.0,0.36258725]
[1730423495599,0.001646,70259.0,70258.0,0.67754216]
[1730423495803,0.001646,70259.0,70258.0,0.56698725]
[1730423496207,0.001646,70260.0,70259.0,0.007]
[1730423496416,0.001646,70260.0,70259.0,0.4677312]
[1730423496627,0.001646,70260.0,70259.0,0.46488525]
[1730423497246,0.001646,70260.0,70259.0,0.56488525]
[1730423500350,0.001646,70260.0,70259.0,0.57549027]
[1730423502647,0.001646,70260.0,70259.0,0.73248157]
[1730423502999,0.001646,70270.0,70269.0,0.14731]
[1730423503197,0.001646,70270.0,70269.0,0.5506116]
[1730423503447,0.001646,70270.0,70269.0,0.54776592]
[1730423504522,0.001646,70270.0,70269.0,0.58527653]
[1730423505172,0.001646,70270.0,70269.0,0.69027653]
[1730423505508,0.001646,70270.0,70269.0,0.70724456]
[1730423505928,0.001646,70270.0,70269.0,0.70924456]
[1730423506246,0.21255491,70286.0,70280.0,0.142287]
[1730423506443,0.0174428,70281.0,70280.0,0.29134727]
[1730423506688,0.001614,70281.0,70280.0,0.29134727]
[1730423508809,0.001614,70281.0,70280.0,0.29138612]
[1730423509210,0.001614,70281.0,70280.0,0.28074225]
[1730423509413,0.001614,70281.0,70280.0,0.29138612]
[1730423510388,0.001614,70281.0,70280.0,0.30841632]
[1730423511556,0.001614,70281.0,70280.0,0.31720225]
[1730423515023,0.001614,70281.0,70280.0,0.31722026]
[1730423516314,0.001614,70281.0,70280.0,0.3065694]
[1730423516513,0.001614,70281.0,70280.0,0.31722016]
[1730423517915,0.001614,70281.0,70274.0,0.01704122]
[1730423518058,0.001614,70281.0,70272.0,0.284608]
[1730423518059,0.0174428,70281.0,70275.0,0.29140431]
[1730423518264,0.0174428,70281.0,70276.0,0.01065206]
[1730423518489,0.0174428,70281.0,70277.0,0.01065206]
[1730423518689,0.0174428,70281.0,70276.0,0.13845525]
[1730423518893,0.0174428,70281.0,70277.0,0.0106533]
[1730423519094,0.0174428,70281.0,70276.0,0.13845525]
[1730423519292,0.0174428,70281.0,70277.0,0.0106533]
[1730423519569,0.0174428,70281.0,70276.0,0.13845525]
[1730423519987,0.0174428,70281.0,70277.0,0.01065461]
[1730423520192,0.0174428,70281.0,70276.0,0.13845525]
[1730423520647,0.0174428,70281.0,70277.0,0.01065572]
[1730423520847,0.0174428,70281.0,70276.0,0.13845525]
[1730423520999,0.0174428,70281.0,70277.0,0.01065555]
[1730423521206,0.0174428,70281.0,70276.0,0.13845525]
[1730423521390,0.0174428,70281.0,70277.0,0.01065664]
[1730423521590,0.0174428,70281.0,70276.0,0.13845525]
[1730423521813,0.0174428,70281.0,70277.0,0.01065716]
[1730423522027,0.0174428,70281.0,70276.0,0.13845525]
[1730423522230,0.0174428,70281.0,70276.0,0.28075025]
[1730423523227,0.0174428,70281.0,70276.0,0.13845525]
[1730423523438,0.0174428,70281.0,70277.0,0.0106607]
[1730423523686,0.001614,70281.0,70277.0,0.142293]
[1730423523887,0.01489993,70281.0,70277.0,0.142293]
[1730423524353,0.01581755,70280.0,70277.0,0.142293]
[1730423526194,0.01581755,70280.0,70276.0,0.13845525]
[1730423526638,0.001614,70281.0,70276.0,0.13845525]
[1730423526860,0.01490613,70281.0,70276.0,0.13845525]
[1730423527065,0.01581755,70280.0,70276.0,0.13845525]
[1730423527506,0.01329242,70279.0,70276.0,0.13845525]
[1730423527940,0.01581755,70278.0,70276.0,0.13845525]
[1730423528197,0.001614,70281.0,70276.0,0.28074925]
[1730423528429,0.01581755,70277.0,70276.0,0.28074925]
[1730423528648,0.001614,70281.0,70276.0,0.29141541]
[1730423528869,0.01490668,70281.0,70276.0,0.28074925]
[1730423529096,0.01581755,70280.0,70276.0,0.28074925]
[1730423529301,0.01329268,70279.0,70276.0,0.28074925]
[1730423529736,0.01581755,70278.0,70276.0,0.28074925]
[1730423529956,0.001614,70281.0,70276.0,0.28074925]
[1730423530179,0.01581755,70277.0,70276.0,0.28074925]
[1730423530606,0.001614,70281.0,70276.0,0.28074925]
[1730423530820,0.01490606,70281.0,70276.0,0.28074925]
[1730423531166,0.01581755,70280.0,70276.0,0.28074925]
[1730423531507,0.01329206,70279.0,70276.0,0.28074925]
[1730423532211,0.01581755,70278.0,70276.0,0.28074925]
[1730423532689,0.001614,70281.0,70276.0,0.28074925]
[1730423532909,0.01581755,70277.0,70276.0,0.28074925]
[1730423533134,0.001614,70281.0,70276.0,0.28074925]
[1730423533354,0.01581755,70277.0,70276.0,0.28074925]
[1730423533575,0.001614,70281.0,70276.0,0.28074925]
[1730423533800,0.01581755,70277.0,70276.0,0.28074925]
[1730423534025,0.001614,70281.0,70276.0,0.28074925]
[1730423534257,0.01490452,70281.0,70280.0,0.142287]
[1730423534478,0.001614,70281.0,70280.0,0.13845525]
[1730423536337,0.1748,70280.0,70273.0,0.18492294]
[1730423536553,0.1748,70280.0,70274.0,0.50397759]
[1730423536776,0.1748,70280.0,70274.0,0.49331016]
[1730423536777,0.01329171,70279.0,70274.0,0.49331016]
[1730423537214,0.01329171,70279.0,70274.0,0.28075525]
[1730423537442,0.01329171,70279.0,70275.0,0.01066792]
[1730423537702,0.01329171,70279.0,70276.0,0.13845525]
[1730423540014,0.01329297,70278.0,70276.0,0.13845525]
[1730423540500,0.1748,70280.0,70276.0,0.13845525]
[1730423540724,0.0132937,70279.0,70276.0,0.13845525]
[1730423540972,0.01581383,70277.0,70276.0,0.13845525]
[1730423541211,0.1748,70280.0,70276.0,0.13845525]
[1730423541448,0.0132946,70279.0,70276.0,0.13845525]
[1730423541868,0.1748,70280.0,70276.0,0.13845525]
[1730423542365,0.01581383,70279.0,70276.0,0.13845525]
[1730423542641,0.1748,70280.0,70276.0,0.13845525]
[1730423543339,0.01581383,70279.0,70276.0,0.13845525]
[1730423544080,0.0132971,70278.0,70276.0,0.13845525]
[1730423544730,0.01581383,70277.0,70276.0,0.13845525]
[1730423544935,0.02911093,70277.0,70276.0,0.13845525]
[1730423545149,0.0132971,70277.0,70276.0,0.13845525]
[1730423545365,0.01581383,70277.0,70276.0,0.13845525]
[1730423545570,0.0132971,70277.0,70276.0,0.13845525]
[1730423545754,0.02911093,70277.0,70276.0,0.13845525]
[1730423546667,0.02911093,70277.0,70276.0,0.14913276]
[1730423547318,0.01581383,70277.0,70276.0,0.13845525]
[1730423547531,0.02911759,70277.0,70276.0,0.13845525]
[1730423547765,0.01330376,70277.0,70276.0,0.14913276]
[1730423547938,0.01581383,70277.0,70276.0,0.14913276]
[1730423548178,0.01330376,70277.0,70276.0,0.14913276]
[1730423548586,0.1748,70280.0,70276.0,0.13845525]
[1730423548786,0.01330829,70279.0,70276.0,0.14913639]
[1730423548993,0.01330829,70278.0,70276.0,0.13845525]
[1730423549175,0.01330829,70279.0,70277.0,0.01068114]
[1730423549380,0.01330829,70278.0,70276.0,0.13845525]
[1730423549520,0.1748,70280.0,70277.0,0.01068114]
[1730423549730,0.01581383,70277.0,70276.0,0.13845525]
[1730423549941,0.01330829,70277.0,70276.0,0.14913639]
[1730423550172,0.01581383,70277.0,70276.0,0.14913639]
[1730423550368,0.1748,70280.0,70276.0,0.14913639]
[1730423550369,0.01330829,70278.0,70276.0,0.14913639]
[1730423550582,0.1748,70280.0,70277.0,0.01068114]
[1730423550785,0.01330598,70279.0,70277.0,0.01068114]
[1730423550994,0.01330598,70278.0,70276.0,0.13845525]
[1730423551218,0.1748,70280.0,70277.0,0.0106812]
[1730423551417,0.01330633,70279.0,70276.0,0.13845525]
[1730423551793,0.01330633,70278.0,70277.0,0.15297426]
[1730423551992,0.001614,70281.0,70280.0,0.142287]
[1730423552204,0.001614,70281.0,70280.0,0.33409465]
[1730423553079,0.001614,70281.0,70280.0,0.33409464]
[1730423554036,0.001614,70281.0,70280.0,0.3340957]
[1730423554269,0.001614,70281.0,70280.0,0.32341444]
[1730423554474,0.001614,70281.0,70280.0,0.33409024]
[1730423555115,0.001614,70281.0,70280.0,0.14913105]
[1730423555774,0.001614,70281.0,70280.0,0.28074225]
[1730423555889,0.001614,70281.0,70280.0,0.29141707]
[1730423557199,0.001614,70281.0,70280.0,0.14913007]
[1730423561276,0.001614,70281.0,70280.0,0.19181038]
[1730423562647,0.001614,70281.0,70280.0,0.18113556]
[1730423562937,0.001614,70281.0,70280.0,0.13845525]
[1730423566915,0.01489556,70281.0,70280.0,0.13845525]
[1730423567361,0.001614,70281.0,70280.0,0.13845525]
[1730423569279,0.01489481,70281.0,70280.0,0.13845525]
[1730423569523,0.01489481,70281.0,70280.0,0.28074225]
[1730423569991,0.001614,70281.0,70280.0,0.28574225]
[1730423570250,0.001614,70281.0,70280.0,0.5483106]
[1730423571231,0.001614,70281.0,70280.0,0.70590388]
[1730423571675,0.001614,70281.0,70280.0,0.62990827]
[1730423571892,0.001614,70281.0,70280.0,0.69394305]
[1730423575959,0.001614,70281.0,70280.0,0.68327031]
[1730423576368,0.001614,70281.0,70280.0,0.52567703]
[1730423576576,0.001614,70281.0,70280.0,0.53634925]
[1730423577459,0.001614,70281.0,70280.0,0.53134925]
[1730423578511,0.001614,70281.0,70280.0,0.61234486]
[1730423579555,0.001614,70281.0,70280.0,0.6123474]
[1730423579964,0.001614,70281.0,70280.0,0.6073474]
[1730423580169,0.001614,70281.0,70280.0,0.4314474]
[1730423580823,0.001614,70281.0,70280.0,0.4364474]
[1730423581013,0.001614,70281.0,70280.0,0.5278474]
[1730423581488,0.001614,70281.0,70280.0,0.6100474]
[1730423582160,0.001614,70281.0,70280.0,0.61003454]
[1730423584360,0.001614,70281.0,70280.0,0.63852454]
[1730423584567,0.001614,70281.0,70280.0,0.61003454]
[1730423585573,0.001614,70281.0,70280.0,0.52336417]
[1730423585759,0.001614,70281.0,70280.0,0.53404096]
[1730423586294,0.001614,70281.0,70280.0,0.69159694]
[1730423586431,0.001614,70281.0,70280.0,0.53404096]
[1730423587261,0.001614,70281.0,70280.0,0.75335645]
[1730423587551,0.001614,70281.0,70280.0,0.74465389]
[1730423589360,0.001614,70281.0,70280.0,0.74464276]
[1730423595947,0.001614,70281.0,70280.0,0.74664276]
[1730423596417,0.001614,70281.0,70280.0,0.74464276]
[1730423596618,0.001614,70281.0,70280.0,0.74462191]
[1730423599514,0.001614,70281.0,70280.0,0.74662191]
[1730423599841,0.001614,70281.0,70280.0,0.74462191]
[1730423600190,0.001614,70281.0,70280.0,0.74462391]
[1730423604116,0.001614,70281.0,70280.0,0.74662391]
[1730423605241,0.001614,70281.0,70280.0,0.74649968]
[1730423607521,0.001614,70281.0,70280.0,0.74449968]
[1730423608621,0.001614,70281.0,70280.0,0.74649968]
[1730423609072,0.001614,70281.0,70280.0,0.7187698]
[1730423609295,0.001614,70281.0,70280.0,0.74650247]
[1730423609736,0.001614,70281.0,70280.0,0.87443102]
[1730423609951,0.001614,70281.0,70280.0,0.74650247]
[1730423610175,0.001614,70289.0,70288.0,0.005]
[1730423610397,0.0174483,70289.0,70288.0,0.88167821]
[1730423610612,0.001614,70289.0,70288.0,0.88083354]
[1730423610820,0.001614,70289.0,70288.0,0.92525162]
[1730423611458,0.001614,70289.0,70288.0,0.90856166]
[1730423611659,0.001614,70289.0,70288.0,0.95296387]
[1730423613834,0.001614,70289.0,70288.0,0.83056605]
[1730423614084,0.001614,70289.0,70288.0,0.75836788]
[1730423614291,0.001614,70289.0,70288.0,0.66071746]
[1730423614496,0.001614,70289.0,70288.0,0.74592105]
[1730423614755,0.001614,70289.0,70288.0,0.74576566]
[1730423614965,0.001614,70289.0,70288.0,0.99566127]
[1730423615171,0.001614,70289.0,70288.0,0.91245763]
[1730423615597,0.001614,70289.0,70288.0,1.04026309]
[1730423616424,0.001614,70289.0,70288.0,0.91245763]
[1730423617362,0.001614,70289.0,70288.0,1.04026309]
[1730423617568,0.001614,70289.0,70288.0,0.91245763]
[1730423617780,0.001612,70293.0,70292.0,0.40625422]
[1730423617934,0.001612,70293.0,70292.0,0.90469822]
[1730423618138,0.001612,70293.0,70292.0,0.9490583]
[1730423618865,0.001612,70293.0,70292.0,0.90469822]
[1730423619119,0.001612,70293.0,70292.0,1.00466591]
[1730423619320,0.001612,70293.0,70292.0,1.03234603]
[1730423619474,0.001612,70293.0,70292.0,1.03221345]
[1730423620492,0.001612,70293.0,70292.0,0.90451659]
[1730423621922,0.001612,70293.0,70292.0,2.17791659]
[1730423622351,0.001612,70293.0,70292.0,2.17789403]
[1730423622756,1e-06,70296.0,70295.0,0.254257]
[1730423622960,0.21255491,70319.0,70300.0,0.254247]
[1730423623158,0.21255491,70319.0,70300.0,0.79615197]
[1730423623369,0.21255491,70319.0,70300.0,0.79330791]
[1730423623808,1e-06,70301.0,70300.0,0.94529913]
[1730423624014,0.21255491,70319.0,70315.0,0.152217]
[1730423624235,0.21255491,70319.0,70315.0,0.48014936]
[1730423624437,0.1735,70329.0,70315.0,0.50579538]
[1730423624659,0.1735,70329.0,70315.0,0.50079538]
[1730423624870,0.1735,70329.0,70315.0,0.50579538]
[1730423625095,0.1735,70329.0,70315.0,0.49515786]
[1730423625330,0.1735,70329.0,70315.0,0.70771277]
[1730423625551,0.1735,70329.0,70315.0,0.50579538]
[1730423625552,0.0975,70329.0,70315.0,0.50579538]
[1730423625755,0.076,70333.0,70315.0,0.50779538]
[1730423626262,0.076,70333.0,70315.0,0.7283721]
[1730423626504,0.31165491,70334.0,70315.0,0.50779538]
[1730423627107,0.31165491,70334.0,70315.0,0.50577421]
[1730423627283,0.31165491,70334.0,70315.0,0.50777421]
[1730423627490,0.31165491,70334.0,70315.0,0.55919479]
[1730423628086,0.31165491,70334.0,70315.0,0.51674753]
[1730423628451,0.31165491,70334.0,70315.0,0.54856652]
[1730423629957,0.31165491,70334.0,70315.0,0.54656652]
[1730423632087,0.001612,70316.0,70315.0,0.72767352]
[1730423632523,0.001612,70330.0,70315.0,0.72767352]
[1730423632524,0.001612,70330.0,70329.0,0.147188]
[1730423632727,0.001612,70330.0,70329.0,0.53763447]
[1730423632949,0.001612,70330.0,70329.0,0.54463447]
[1730423633150,0.001612,70330.0,70329.0,0.53963447]
[1730423633353,0.001612,70330.0,70329.0,0.54463447]
[1730423633770,0.001612,70330.0,70329.0,0.62183447]
[1730423634851,0.001612,70330.0,70329.0,0.63068624]
[1730423635060,0.001612,70330.0,70329.0,0.62868624]
[1730423637686,0.001612,70330.0,70329.0,0.63068624]
[1730423637908,0.001612,70330.0,70329.0,0.47549063]
[1730423638107,0.001612,70330.0,70329.0,0.55148624]
[1730423639122,0.001612,70330.0,70329.0,0.54648624]
[1730423639363,0.001612,70330.0,70329.0,0.47549063]
[1730423639500,0.001612,70330.0,70329.0,0.55148624]
[1730423641293,0.001612,70330.0,70329.0,0.55348624]
[1730423641512,0.001612,70330.0,70329.0,0.55148624]
[1730423642591,0.001612,70330.0,70329.0,0.63108624]
[1730423642749,0.001612,70330.0,70329.0,0.64169071]
[1730423643072,0.001612,70341.0,70340.0,0.147166]
[1730423643274,0.001612,70341.0,70340.0,0.36161686]
[1730423647799,0.001612,70341.0,70340.0,0.28062125]
[1730423648029,0.001612,70341.0,70340.0,0.35661686]
[1730423649347,0.001612,70341.0,70340.0,0.36722245]
[1730423649570,0.001612,70341.0,70340.0,0.29122684]
[1730423650422,0.001612,70341.0,70340.0,0.36722245]
[1730423650838,0.001612,70341.0,70340.0,0.35661686]
[1730423651038,0.001612,70341.0,70340.0,0.36724596]
[1730423652640,0.001612,70341.0,70340.0,0.3760789]
[1730423654141,0.001612,70341.0,70340.0,0.29125035]
[1730423654350,0.001612,70341.0,70340.0,0.14910012]
[1730423654569,0.179512,70341.0,70340.0,0.14910012]
[1730423654763,0.20874559,70341.0,70340.0,0.14910012]
[1730423657474,0.20874559,70341.0,70340.0,0.01065369]
[1730423657712,0.1761,70337.0,70330.0,0.01704622]
[1730423657937,0.01328796,70336.0,70335.0,0.21255491]
[1730423658217,0.05050147,70336.0,70335.0,0.13845525]
[1730423658447,0.02924081,70336.0,70335.0,0.13845525]
[1730423661562,0.01595285,70336.0,70335.0,0.14910936]
[1730423661776,0.02924042,70336.0,70335.0,0.13845525]
[1730423664798,0.17141442,70336.0,70335.0,0.13845525]
[1730423665802,0.17140884,70336.0,70335.0,0.13845525]
[1730423666779,0.17140884,70336.0,70331.0,0.000823]
[1730423666780,0.142182,70332.0,70331.0,0.000823]
[1730423667020,0.26290954,70332.0,70331.0,0.000823]
[1730423667240,0.28415704,70332.0,70331.0,0.000823]
[1730423669295,0.28413365,70332.0,70331.0,0.000823]
[1730423669749,0.36503365,70332.0,70331.0,0.000823]
[1730423671064,0.39953976,70332.0,70331.0,0.000823]
[1730423671271,0.36503366,70332.0,70331.0,0.000823]
[1730423673557,0.34379913,70332.0,70331.0,0.000823]
[1730423675065,0.142189,70329.0,70325.0,0.20920091]
[1730423675194,0.142189,70329.0,70326.0,0.13845525]
[1730423675403,0.01592344,70328.0,70326.0,0.13845525]
[1730423676283,0.142191,70328.0,70326.0,0.13845525]
[1730423676488,0.01592344,70327.0,70326.0,0.13845525]
[1730423676928,0.01592344,70327.0,70326.0,0.21445086]
[1730423677378,0.142187,70330.0,70326.0,0.21445086]
[1730423677585,0.01592344,70327.0,70326.0,0.21445086]
[1730423677789,0.142187,70330.0,70326.0,0.21445086]
[1730423678027,0.59895,70332.0,70326.0,0.21445086]
[1730423678235,0.01592344,70331.0,70326.0,0.21445086]
[1730423683268,0.01592344,70331.0,70326.0,0.13927825]
[1730423690114,0.01592344,70331.0,70330.0,0.07599561]
[1730423690330,0.001646,70332.0,70330.0,0.22511]
[1730423690570,0.001646,70332.0,70331.0,0.14911439]
[1730423692465,0.01756645,70332.0,70331.0,0.13845525]
[1730423692686,0.176846,70332.0,70326.0,0.000823]
[1730423692914,0.142185,70331.0,70327.0,0.14911574]
[1730423693145,0.142185,70331.0,70327.0,0.13845525]
[1730423693385,0.176846,70332.0,70327.0,0.13845525]
[1730423693386,0.01592045,70330.0,70327.0,0.13845525]
[1730423693820,0.142185,70331.0,70327.0,0.13845525]
[1730423694035,0.01592045,70329.0,70327.0,0.13845525]
[1730423694243,0.142185,70331.0,70327.0,0.13845525]
[1730423694452,0.01592045,70328.0,70327.0,0.13845525]
[1730423694869,0.142187,70330.0,70327.0,0.13845525]
[1730423695140,0.01592045,70328.0,70327.0,0.13845525]
[1730423695319,0.176846,70332.0,70327.0,0.13845525]
[1730423695526,0.01592045,70328.0,70327.0,0.13845525]
[1730423695734,0.142185,70331.0,70327.0,0.13845525]
[1730423695963,0.0159215,70328.0,70327.0,0.13845525]
[1730423696168,0.142185,70331.0,70327.0,0.13927825]
[1730423696403,0.0159215,70328.0,70327.0,0.13927825]
[1730423696613,0.176846,70332.0,70327.0,0.13927825]
[1730423696819,0.0159215,70328.0,70327.0,0.13927825]
[1730423697031,0.142187,70330.0,70327.0,0.13927825]
[1730423697272,0.0159215,70328.0,70327.0,0.13927825]
[1730423697499,0.0159215,70329.0,70327.0,0.13927825]
[1730423697727,0.319029,70332.0,70327.0,0.13927825]
[1730423697939,0.0159215,70328.0,70327.0,0.13927825]
[1730423698154,0.142185,70331.0,70327.0,0.13927825]
[1730423698366,0.0159215,70328.0,70327.0,0.13927825]
[1730423698591,0.142185,70331.0,70327.0,0.13927825]
[1730423698805,0.0159215,70328.0,70327.0,0.13927825]
[1730423699049,0.142185,70331.0,70327.0,0.13927825]
[1730423699278,0.0159215,70328.0,70327.0,0.13927825]
[1730423699521,0.14219,70328.0,70327.0,0.13927825]
[1730423699734,0.1581115,70328.0,70327.0,0.13927825]
[1730423700425,0.0159215,70328.0,70327.0,0.13927825]
[1730423700651,0.0159215,70328.0,70327.0,0.000823]
[1730423700652,0.1581115,70328.0,70327.0,0.000823]
[1730423700878,0.26259,70328.0,70327.0,0.000823]
[1730423701120,0.3574115,70328.0,70327.0,0.000823]
[1730423705815,0.3644115,70328.0,70327.0,0.000823]
[1730423706040,0.47099101,70328.0,70327.0,0.000823]
[1730423706517,0.47099101,70328.0,70326.0,0.000823]
[1730423706518,0.257213,70317.0,70316.0,0.21255491]
[1730423707229,0.284438,70314.0,70306.0,0.21255491]
[1730423707451,0.142229,70310.0,70307.0,0.13845525]
[1730423707670,0.142231,70309.0,70307.0,0.13845525]
[1730423708303,0.0159215,70308.0,70307.0,0.13845525]
[1730423711832,0.142243,70302.0,70301.0,0.000823]
[1730423712071,0.142243,70302.0,70301.0,0.13927825]
[1730423712309,0.15812227,70302.0,70301.0,0.13927825]
[1730423714431,0.01587927,70302.0,70301.0,0.13927825]
[1730423714647,0.142242,70303.0,70301.0,0.13927825]
[1730423714858,0.01587927,70302.0,70301.0,0.13927825]
[1730423715308,0.023,70306.0,70301.0,0.13927825]
[1730423715516,0.01587927,70302.0,70301.0,0.13927825]
[1730423715768,0.142242,70303.0,70301.0,0.13927825]
[1730423715975,0.01587927,70302.0,70301.0,0.13927825]
[1730423717649,0.07599561,70313.0,70301.0,0.13927825]
[1730423717896,0.14224,70304.0,70301.0,0.13927825]
[1730423718100,0.142242,70303.0,70301.0,0.13927825]
[1730423718616,0.01587927,70302.0,70301.0,0.13927825]
[1730423719299,0.142239,70304.0,70301.0,0.13927825]
[1730423719536,0.01587927,70302.0,70301.0,0.13927825]
[1730423719753,0.142239,70304.0,70301.0,0.13927825]
[1730423719964,0.01587927,70302.0,70301.0,0.13927825]
[1730423720179,0.142239,70304.0,70301.0,0.13927825]
[1730423720404,0.01587927,70302.0,70301.0,0.13927825]
[1730423720609,0.142239,70304.0,70301.0,0.13927825]
[1730423720833,0.01587927,70302.0,70301.0,0.13927825]
[1730423721044,0.01587138,70302.0,70301.0,0.13927825]
[1730423721252,0.142239,70304.0,70301.0,0.13927825]
[1730423721477,0.01587138,70303.0,70301.0,0.13927825]
[1730423722186,0.01587138,70303.0,70302.0,0.35101016]
[1730423722392,0.01587138,70303.0,70302.0,0.43609386]
[1730423722605,0.023,70310.0,70303.0,0.142239]
[1730423722817,0.023,70310.0,70304.0,0.13845525]
[1730423723028,0.15810138,70309.0,70304.0,0.13845525]
[1730423723231,0.14223,70309.0,70304.0,0.13845525]
[1730423723437,0.01587138,70308.0,70304.0,0.13845525]
[1730423724072,0.023,70312.0,70304.0,0.13845525]
[1730423724277,0.01587138,70307.0,70304.0,0.13845525]
[1730423724483,0.142231,70308.0,70304.0,0.13845525]
[1730423724695,0.01587138,70306.0,70304.0,0.13845525]
[1730423724904,0.142231,70308.0,70304.0,0.13845525]
[1730423725129,0.01587138,70305.0,70304.0,0.13845525]
[1730423725368,0.142231,70308.0,70304.0,0.13845525]
[1730423725607,0.01587138,70305.0,70304.0,0.13845525]
[1730423725823,0.142231,70308.0,70304.0,0.13845525]
[1730423726355,0.01587138,70307.0,70304.0,0.13845525]
[1730423727458,0.01587138,70307.0,70306.0,0.142235]
[1730423727675,0.023,70315.0,70307.0,0.142233]
[1730423727890,0.023,70315.0,70308.0,0.13845525]
[1730423728343,0.165218,70315.0,70308.0,0.13845525]
[1730423728590,0.142221,70313.0,70308.0,0.13845525]
[1730423729026,0.142219,70314.0,70308.0,0.13845525]
[1730423729237,0.142218,70315.0,70308.0,0.13845525]
[1730423729471,0.023,70317.0,70308.0,0.13845525]
[1730423729472,0.142219,70314.0,70308.0,0.13845525]
[1730423730372,0.142223,70312.0,70308.0,0.13845525]
[1730423730598,0.36043361,70314.0,70308.0,0.13845525]
[1730423730830,0.142224,70312.0,70308.0,0.13845525]
[1730423731301,0.426663,70313.0,70308.0,0.13845525]
[1730423731519,0.142224,70312.0,70308.0,0.13845525]
[1730423731723,0.07599561,70314.0,70308.0,0.13845525]
[1730423731950,0.07599561,70311.0,70302.0,0.0794]
[1730423732162,0.142239,70304.0,70303.0,0.35101016]
[1730423732583,0.142239,70304.0,70303.0,0.13845525]
[1730423733020,0.142235,70306.0,70303.0,0.13845525]
[1730423734544,0.383447,70312.0,70303.0,0.13845525]
[1730423734545,0.142228,70310.0,70303.0,0.13845525]